Workbook

Sheet 9月份
A1: 陆 丰 市 2024 年 9 月 财 政 预 算 支 出 完 成 情 况 表
A2: 2024-09-30 | O2: 单位：万元
B3: 年 初 | C3: 年度预算计划 | F3: 累计 | G3: 占年 | H3: 上年 | I3: 比上年 | J3: 比上年 | K3: 本月 | L3: 上年 | M3: 比上年 | N3: 比上年
A4: 支 出 项 目 | B4: 预 算 | F4: 完成 | G4: 预算 | H4: 同期 | I4: 同期增 | J4: 同期增 | K4: 完成 | L4: 同月 | M4: 同月增 | N4: 同月增 | O4: 备 注
B5: 数 | C5: 上级补助 | D5: 上年结转 | E5: 本级安排 | F5: 数 | G5: % | H5: 完成 | I5: 减额 | J5: (减)% | K5: 数 | L5: 完成 | M5: 减额 | N5: (减)%
A6: 201、一般公共服务支出 | B6: =C6+D6+E6 -> 69,512 | C6: 2,326 | D6: 1,760 | E6: 65,426 | F6: 68,045 | G6: =F6/B6*100 -> 97.9 | H6: 59,783 | I6: =F6-H6 -> 8,262 | J6: =I6/H6*100 -> 13.8 | K6: =F6-'[1]8月份'!F6 -> 28,610 | L6: =H6-'[1]8月份'!H6 -> 7,497 | M6: =K6-L6 -> 21,113 | N6: =M6/L6*100 -> 281.6
A7: 203、国防支出 | B7: 161 | C7: 127 | D7: 34 | F7: 40 | G7: 24.8 | I7: 40 | K7: =F7-'[1]8月份'!F7 -> 4 | L7: =H7-'[1]8月份'!H7 -> 0 | M7: 4
A8: 204、公共安全支出 | B8: 58,090 | C8: 4,995 | E8: 53,095 | F8: 61,045 | G8: 105.1 | H8: 45,521 | I8: 15,524 | J8: 34.1 | K8: =F8-'[1]8月份'!F8 -> 27,552 | L8: =H8-'[1]8月份'!H8 -> 4,135 | M8: 23,417 | N8: 566.3
A9: 205、教育支出 | B9: 243,007 | C9: 53,874 | D9: 6,314 | E9: 182,819 | F9: 139,122 | G9: 57.3 | H9: 118,259 | I9: 20,863 | J9: 17.6 | K9: =F9-'[1]8月份'!F9 -> 11,997 | L9: =H9-'[1]8月份'!H9 -> 20,216 | M9: -8,219 | N9: -40.7
A10: 206、科学技术支出 | B10: 3,069 | C10: 405 | D10: 1,520 | E10: 1,144 | F10: 571 | G10: 18.6 | H10: 789 | I10: -218 | J10: -27.6 | K10: =F10-'[1]8月份'!F10 -> 97 | L10: =H10-'[1]8月份'!H10 -> 3 | M10: 94 | N10: 3133.3
A11: 207、文化体育与传媒支出 | B11: 10,333 | C11: 1,379 | D11: 14 | E11: 8,940 | F11: 3,351 | G11: 32.4 | H11: 3,628 | I11: -277 | J11: -7.6 | K11: =F11-'[1]8月份'!F11 -> 197 | L11: =H11-'[1]8月份'!H11 -> 398 | M11: -201 | N11: -50.5
A12: 208、社会保障和就业支出 | B12: 178,458 | C12: 85,411 | D12: 1,600 | E12: 91,447 | F12: 135,362 | G12: 75.9 | H12: 116,567 | I12: 18,795 | J12: 16.1 | K12: =F12-'[1]8月份'!F12 -> 17,586 | L12: =H12-'[1]8月份'!H12 -> 8,712 | M12: 8,874 | N12: 101.9
A13: 210、卫生健康支出 | B13: 140,567 | C13: 93,403 | D13: 1,793 | E13: 45,371 | F13: 115,057 | G13: 81.9 | H13: 111,514 | I13: 3,543 | J13: 3.2 | K13: =F13-'[1]8月份'!F13 -> 2,230 | L13: =H13-'[1]8月份'!H13 -> 2,849 | M13: -619 | N13: -21.7
A14: 211、节能环保支出 | B14: 5,191 | C14: 377 | D14: 1,308 | E14: 3,506 | F14: 1,592 | G14: 30.7 | H14: 2,203 | I14: -611 | J14: -27.7 | K14: =F14-'[1]8月份'!F14 -> 410 | L14: =H14-'[1]8月份'!H14 -> 603 | M14: -193 | N14: -32.0
A15: 212、城乡社区支出 | B15: 21,835 | C15: 912 | D15: 438 | E15: 20,485 | F15: 13,865 | G15: 63.5 | H15: 20,986 | I15: -7,121 | J15: -33.9 | K15: =F15-'[1]8月份'!F15 -> 1,965 | L15: =H15-'[1]8月份'!H15 -> 911 | M15: 1,054 | N15: 115.7
A16: 213、农林水支出 | B16: 108,249 | C16: 51,752 | D16: 42,127 | E16: 14,370 | F16: 49,053 | G16: 45.3 | H16: 66,085 | I16: -17,032 | J16: -25.8 | K16: =F16-'[1]8月份'!F16 -> 9,469 | L16: =H16-'[1]8月份'!H16 -> 10,757 | M16: -1,288 | N16: -12.0
A17: 214、交通运输支出 | B17: 34,638 | C17: 16,477 | D17: 8,278 | E17: 9,883 | F17: 8,989 | G17: 26.0 | H17: 50,307 | I17: -41,318 | J17: -82.1 | K17: =F17-'[1]8月份'!F17 -> 3,250 | L17: =H17-'[1]8月份'!H17 -> 1,488 | M17: 1,762 | N17: 118.4
A18: 215、资源勘探工业信息等支出 | B18: 765 | D18: 240 | E18: 525 | F18: 545 | G18: 71.2 | H18: 280 | I18: 265 | J18: 94.6 | K18: =F18-'[1]8月份'!F18 -> 11 | L18: =H18-'[1]8月份'!H18 -> 7 | M18: 4 | N18: 57.1
A19: 216、商业服务业等支出 | B19: 872 | D19: 110 | E19: 762 | F19: 892 | G19: 102.3 | H19: 870 | I19: 22 | J19: 2.5 | K19: =F19-'[1]8月份'!F19 -> 49 | L19: =H19-'[1]8月份'!H19 -> 139 | M19: -90 | N19: -64.7
A20: 217、金融支出 | B20: 0 | F20: 1 | H20: 33,960 | I20: -33,959 | J20: -100.0 | K20: =F20-'[1]8月份'!F20 -> 0 | L20: =H20-'[1]8月份'!H20 -> 22,159 | M20: -22,159
A21: 220、自然资源海洋气象等支出 | B21: 4,974 | C21: 450 | D21: 572 | E21: 3,952 | F21: 2,714 | G21: =F21/B21*100 -> 54.6 | H21: 2,820 | I21: -106 | J21: -3.8 | K21: =F21-'[1]8月份'!F21 -> 274 | L21: =H21-'[1]8月份'!H21 -> 163 | M21: 111 | N21: =M21/L21*100 -> 68.1
A22: 221、住房保障支出 | B22: 18,868 | D22: 183 | E22: 18,685 | F22: 11,705 | G22: 62.0 | H22: 12,812 | I22: -1,107 | J22: -8.6 | K22: =F22-'[1]8月份'!F22 -> 2,044 | L22: =H22-'[1]8月份'!H22 -> 1,198 | M22: 846 | N22: 70.6
A23: 222、粮油物资储备支出 | B23: 2,700 | E23: 2,700 | F23: 1,100 | G23: 40.7 | H23: 1,329 | I23: -229 | J23: -17.2 | K23: =F23-'[1]8月份'!F23 -> 300 | L23: =H23-'[1]8月份'!H23 -> 0 | M23: 300
A24: 224、灾害防治及应急管理支出 | B24: 2,852 | C24: 89 | D24: 46 | E24: 2,717 | F24: 1,731 | G24: 60.7 | H24: 3,236 | I24: -1,505 | J24: -46.5 | K24: =F24-'[1]8月份'!F24 -> 126 | L24: =H24-'[1]8月份'!H24 -> 314 | M24: -188 | N24: -59.9
A25: 232、债务付息支出 | B25: 4,260 | E25: 4,260 | F25: 1,998 | G25: 46.9 | H25: 2,484 | I25: -486 | J25: -19.6 | K25: =F25-'[1]8月份'!F25 -> 0 | L25: =H25-'[1]8月份'!H25 -> 437 | M25: -437 | N25: -100.0
A26: 233、债务发行费用支出 | B26: 40 | E26: 40 | F26: 28 | G26: 70.0 | H26: 0 | I26: 28 | K26: =F26-'[1]8月份'!F26 -> 0 | L26: =H26-'[1]8月份'!H26 -> 0 | M26: 0
A27: 227、预备费 | B27: 0 | I27: 0 | K27: =F27-'[1]8月份'!F27 -> 0 | L27: =H27-'[1]8月份'!H27 -> 0 | M27: 0
A28: 229、其他支出 | B28: 4,885 | E28: 4,885 | F28: 775 | G28: =F28/B28*100 -> 15.9 | H28: 1,672 | I28: -897 | J28: =I28/H28*100 -> -53.6 | K28: =F28-'[1]8月份'!F28 -> 24 | L28: =H28-'[1]8月份'!H28 -> 138 | M28: -114 | N28: =M28/L28*100 -> -82.6
A29: 一、一般公共预算支出合计 | B29: =SUM(B6:B28) -> 913,326 | C29: 311,977 | D29: 66,337 | E29: 535,012 | F29: 617,581 | G29: 67.6 | H29: =SUM(H6:H28) -> 655,105 | I29: -37,524 | J29: -5.7 | K29: 106,195 | L29: 82,124 | M29: 24,071 | N29: 29.3
A30: 二、政府性基金预算支出 | B30: 352,806 | F30: 201,597 | G30: 57.1 | H30: 361,995 | I30: -160,398 | J30: -44.3 | K30: =F30-'[1]8月份'!F30 -> 48,146 | L30: =H30-'[1]8月份'!H30 -> 8,968 | M30: 39,178 | N30: 436.9
A31: 三、国有资本经营支出 | B31: 5,666 | F31: 308 | G31: 5.4 | H31: 531 | I31: -223 | J31: -42.0 | K31: =F31-'[1]8月份'!F31 -> 0 | L31: =H31-'[1]8月份'!H31 -> 4 | M31: -4 | N31: -100.0
A32: 四、债务还本支出 | B32: 49,680 | F32: 51,130 | G32: 102.9 | H32: 83,999 | I32: -32,869 | J32: -39.1 | K32: =F32-'[1]8月份'!F32 -> 0 | L32: =H32-'[1]8月份'!H32 -> 76,000 | M32: -76,000 | N32: -100.0
A33: 支出合计 | B33: =B29+B30+B31+B32 -> 1,321,478 | C33: =C29+C30+C31 -> 311,977 | D33: =D29+D30+D31 -> 66,337 | E33: =E29+E30+E31 -> 535,012 | F33: =F29+F30+F31+F32 -> 870,616 | G33: 65.9 | H33: 1,101,630 | I33: -231,014 | J33: -21.0 | K33: 154,341 | L33: 167,096 | M33: -12,755 | N33: -7.6
